[Event "3rd President Cup-A 2024"]
[Site "Tashkent"]
[Date "2024.11.29"]
[Round "9.1"]
[White "Abdusattorov, Nodirbek"]
[Black "Nihal Sarin"]
[Result "1/2-1/2"]
[ECO "D35"]
[WhiteElo "2777"]
[BlackElo "2676"]
[Annotator "TA"]
[PlyCount "84"]
[EventDate "2024.11.22"]
[EventType "swiss"]
[EventCountry "UZB"]
[SourceTitle "playchess.com"]
[Source "ChessBase"]
[SourceQuality "1"]
[TimeControl "5400+30"]

{[%evp 12,84,21,18,22,25,35,29,21,20,25,23,27,13,3,18,8,2,10,13,16,11,17,0,0,0,0,0,0,0,42,21,45,25,23,0,0,0,0,0,0,0,0,0,0,0,0,0,0,0,0,0,0,0,0,0,0,-14,0,0,0,-8,-8,-8,0,0,0,0,0,0,0,0,0,0,0]} 1. c4 {[%emt 0:02:11]} e6 {[%emt 0:01:23]} 2. Nc3 {[%emt 0:00:11]} d5 {[%emt 0:00:05]} 3. d4 {[%emt 0:00:10]} Nf6 {[%emt 0:00:05]} 4. cxd5 {[%emt 0:01:00]} exd5 {[%emt 0:00:06]} 5. Bg5 {[%emt 0:00:07]} Be7 {[%emt 0:00:07]} 6. e3 {[%emt 0:00:44]} h6 {[%emt 0:00:05]} 7. Bh4 {[%emt 0:00:38]} Bg4 {[%emt 0:00:07]} 8. f3 {[%emt 0:01:04]} Be6 {[%emt 0:00:17]} 9. Bd3 {[%emt 0:01:11]} c5 {[%emt 0:00:55] White has an edge.} 10. Nge2 {[%emt 0:00:59]} Nc6 {[%emt 0:01:08]} 11. O-O {[%emt 0:01:53]} O-O {[%emt 0:00:35]} 12. Bf2 {[%emt 0:01:15]} cxd4 {[%emt 0:02:06]} 13. exd4 {[%emt 0:00:08]} Bd6 {[%emt 0:00:50] Prevents Nf4.} 14. Bh4 {[%emt 0:09:02]} Re8 {[%emt 0:01:41]} 15. Rc1 {[%emt 0:00:41]} Rc8 {[%emt 0:00:21]} 16. Bb1 {[%emt 0:00:50]} Be7 {[%emt 0:16:05]} 17. Qd3 {[%emt 0:04:08]} g6 {[%emt 0:12:24]} 18. Qd1 {[%emt 0:18:56]} Qd7 {[%emt 0:25:28]} 19. Qd2 {[%emt 0:06:16]} Kg7 {[%emt 0:00:18]} 20. Bc2 {[%emt 0:01:41]} Na5 {[%emt 0:19:43]} 21. Ba4 {[%emt 0:03:21]} Nc6 {[%emt 0:00:01]} 22. Bf2 {[%emt 0:02:08]} a6 {[%emt 0:00:58]} 23. Nf4 {[%emt 0:06:44]} b5 {[%emt 0:01:07] The position is equal.} 24. Bb3 {[%emt 0:01:18]} Na5 {[%emt 0:00:21]} 25. Rce1 {[%emt 0:02:31][%cal Oe1e6]} Bd6 {[%emt 0:03:48]} 26. Bh4 {[%emt 0:11:36]} (26. Ncxd5 Nxb3 27. Nxe6+ Qxe6 (27... fxe6 $2 28. Nxf6 Nxd2 29. Nxd7 $19) 28. axb3 Qxd5 $19) 26... Nxb3 {[%emt 0:04:31]} 27. axb3 {[%emt 0:03:56]} g5 {[%emt 0:00:07]} 28. Nxe6+ {[%emt 0:03:23]} Rxe6 {[%emt 0:00:05]} ({Reject} 28... fxe6 29. Bg3 $14) 29. Bg3 {[%emt 0:00:03]} Bxg3 {[%emt 0:02:00]} 30. hxg3 {[%emt 0:00:01][%cal Bh2g3,Bg3g4][%mdl 32]} Rce8 {[%emt 0:00:09]} 31. Rxe6 {[%emt 0:03:33]} Qxe6 {[%emt 0:00:18]} 32. g4 {[%emt 0:00:17]} b4 {[%emt 0:04:00]} 33. Na4 {[%emt 0:00:21][%cal Bc3a4,Ba4c5,Bc5d3,Bd3e5][%mdl 32]} Qe2 {[%emt 0:01:37]} 34. Rd1 {[%emt 0:02:13]} Kg6 {[%emt 0:02:27]} 35. Nc5 {[%emt 0:00:34]} (35. Qxe2 {simplifies} Rxe2 36. Kf1 Rc2 37. Nc5) 35... h5 {[%emt 0:00:08]} 36. gxh5+ {[%emt 0:02:42]} Nxh5 {[%emt 0:00:13][%cal Bf6h5,Bh5f4,Bf4e2][%mdl 32]} 37. Nd3 {[%emt 0:00:01] [#] Dodges Nf4. Black must now prevent Ne5+.} Nf4 {[%emt 0:00:35] ...Qxd2 would now be deadly.} 38. Ne5+ {[%emt 0:00:56]} Kg7 {[%emt 0:00:05]} 39. Qxe2 {[%emt 0:04:33]} Nxe2+ {[%emt 0:00:03]} 40. Kf2 {[%emt 0:00:05]} Nxd4 {[%emt 0:00:07]} 41. Rxd4 {[%emt 0:00:07]} Rxe5 {[%emt 0:00:04]} 42. Rxb4 {[%emt 0:00:05]} Re6 {[%emt 0:00:08] Weighted Error Value: White=0.04 (flawless) /Black=0.03 (flawless) .  Inaccurate:     	---       	Black=1      OK:         	White=14    	Black=18     Best:        	White=2     	Black=1} 1/2-1/2

[Event "3rd President Cup-A 2024"]
[Site "Tashkent"]
[Date "2024.11.29"]
[Round "9.2"]
[White "Maghsoodloo, Parham"]
[Black "Saydaliev, Saidakbar"]
[Result "1-0"]
[ECO "D35"]
[WhiteElo "2712"]
[BlackElo "2473"]
[Annotator "TA"]
[PlyCount "75"]
[EventDate "2024.11.22"]
[EventType "swiss"]
[EventCountry "UZB"]
[SourceTitle "playchess.com"]
[Source "ChessBase"]
[SourceQuality "1"]
[TimeControl "5400+30"]

{[%evp 13,75,14,20,11,11,11,15,3,0,12,87,90,87,47,93,37,29,34,85,73,80,76,56,45,50,53,51,65,50,40,47,46,141,139,143,80,104,0,110,142,135,111,167,168,161,161,153,164,164,170,416,388,416,416,713,663,729,715,846,819,885,879,914,900]} 1. d4 {[%emt 0:03:04]} Nf6 {[%emt 0:01:00]} 2. c4 {[%emt 0:00:07]} e6 {[%emt 0:00:15]} 3. Nc3 {[%emt 0:00:05]} d5 {[%emt 0:00:32]} 4. cxd5 {[%emt 0:01:15]} exd5 {[%emt 0:00:10]} 5. Bg5 {[%emt 0:00:12]} Be7 {[%emt 0:00:21]} 6. e3 {[%emt 0:00:37]} O-O {[%emt 0:00:21]} 7. Bd3 {[%emt 0:00:10]} Re8 {[%emt 0:00:37]} 8. Nge2 {[%emt 0:01:23]} c6 {[%emt 0:00:31]} 9. O-O {[%emt 0:01:29]} a5 {[%emt 0:00:46]} 10. f3 {[%emt 0:04:33] The position is equal.} h6 {[%emt 0:22:36]} 11. Bh4 {[%emt 0:01:43]} Ne4 {[%emt 0:06:37]} 12. fxe4 $16 {[%emt 0:12:10]} Bxh4 {[%emt 0:01:07]} 13. Nf4 {[%emt 0:05:42]} Nd7 {[%emt 0:07:55]} (13... dxe4 $14 {should be considered.} 14. Bc4 Ra7) 14. g3 {[%emt 0:18:18]} (14. e5 $16) 14... Bg5 $1 $14 {[%emt 0:03:19]} 15. e5 {[%emt 0:03:13]} Nf8 {[%emt 0:06:14]} (15... f6 $14) 16. Qh5 {[%emt 0:03:06]} Qd7 {[%emt 0:15:57]} 17. h4 {[%emt 0:04:30] White is much more active.} Bd8 {[%emt 0:07:33]} 18. Qf3 {[%emt 0:04:13]} Qg4 $1 {[%emt 0:01:36]} 19. Qf2 {[%emt 0:01:45][%cal Of4d5] Nfxd5! would now be deadly.} f6 {[%emt 0:07:55]} 20. Be2 $36 {[%emt 0:04:51][%mdl 2048] White has the initiative.} Qd7 {[%emt 0:01:42]} 21. exf6 {[%emt 0:08:56]} Bxf6 {[%emt 0:00:10]} 22. Nh5 {[%emt 0:00:03]} Bd8 {[%emt 0:01:47] [#]} ({Black should play} 22... Nh7 $14) 23. e4 $1 $16 {[%emt 0:00:31][%mdl 512] Hoping for exd5.} Qe7 {[%emt 0:06:47]} 24. Kh2 {[%emt 0:03:30] Wards off Bh3} (24. exd5 $142 Qe3 (24... Bh3 $2 25. Bc4 $18) 25. Qxe3 Rxe3 26. Rae1) 24... Bc7 {[%emt 0:00:56]} 25. Rae1 {[%emt 0:03:34] Really sharp!} (25. e5 $6 Ne6 $11) (25. exd5 $16 {Threatens to win with Rae1.} Nh7 26. Rae1) 25... Be6 {[%emt 0:01:32]} (25... Ng6 $1 $11 {keeps the balance.}) 26. exd5 $1 {[%emt 0:02:26]} cxd5 {[%emt 0:01:20]} 27. Kg1 {[%emt 0:01:36][%cal Oe2g4]} Qf7 {[%emt 0:00:35] [#]} (27... Qd6 $16 {might work better.}) 28. Qg2 $1 $18 {[%emt 0:00:13]} Qg6 {[%emt 0:00:48]} 29. Nxd5 {[%emt 0:00:56]} Bxd5 {[%emt 0:00:41]} 30. Qxd5+ {[%emt 0:00:08]} Kh8 {[%emt 0:00:01] [#]} 31. Bc4 $1 {[%emt 0:03:15]} ({And not} 31. Qxb7 Bxg3 32. Qg2 Re3 $11 (32... Bxe1 $2 {perishes.} 33. Rxf8+ Rxf8 34. Qxg6 $18)) 31... Ne6 $2 {[%emt 0:00:16]} (31... Nh7 {was worth a try.}) 32. Rxe6 {[%emt 0:01:01]} Rxe6 {[%emt 0:00:01]} 33. Qxe6 {[%emt 0:00:02]} Qxh5 {[%emt 0:00:02] Black is weak on the light squares} (33... Qxe6 $142 34. Bxe6 Bb6) 34. Qe7 {[%emt 0:00:30] White is clearly winning.} Qe8 {[%emt 0:03:48] Wards off Rf8+} 35. Qxc7 {[%emt 0:00:05]} Rc8 {[%emt 0:00:03]} 36. Qf7 {[%emt 0:00:05]} Qe3+ {[%emt 0:00:08]} 37. Kh2 {[%emt 0:00:05][%cal Of7g6] aiming for Qg6!} Qxd4 {[%emt 0:00:09]} 38. b3 {[%emt 0:00:11] Weighted Error Value: White=0.12 (very precise) /Black=0.35.  Mistake:       	White=3     	Black=8      Inaccurate:     	White=1     	---        OK:         	White=7     	Black=8      Best:        	White=2     	Black=1      Strong:       	White=2     	Black=2      Brilliant:      	White=1     	---} ({Weaker is} 38. Qxb7 Qxc4 39. Rf2 Re8 $14) 1-0

[Event "3rd President Cup-A 2024"]
[Site "Tashkent"]
[Date "2024.11.29"]
[Round "9.3"]
[White "Sindarov, Javokhir"]
[Black "Neelash Saha"]
[Result "1-0"]
[ECO "A11"]
[WhiteElo "2682"]
[BlackElo "2458"]
[Annotator "TA"]
[PlyCount "54"]
[EventDate "2024.11.22"]
[EventType "swiss"]
[EventCountry "UZB"]
[SourceTitle "playchess.com"]
[Source "ChessBase"]
[SourceQuality "1"]
[TimeControl "5400+30"]

{[%evp 10,54,25,12,21,0,0,0,-13,-8,-15,0,0,-22,0,0,17,13,16,0,0,5,7,17,2,14,4,0,0,0,4,7,12,0,21,22,52,64,55,52,54,47,64,65,60,60,71]} 1. c4 {[%emt 0:06:46]} c6 {[%emt 0:00:09]} 2. Nf3 {[%emt 0:00:06]} d5 {[%emt 0:00:36]} 3. g3 {[%emt 0:00:06]} Nf6 {[%emt 0:08:45]} 4. Bg2 {[%emt 0:00:21]} dxc4 {[%emt 0:01:12]} 5. O-O {[%emt 0:00:35]} Nbd7 {[%emt 0:00:32]} 6. Qc2 {[%emt 0:00:26]} Nb6 {[%emt 0:00:37]} 7. b3 {[%emt 0:00:11]} cxb3 {[%emt 0:00:58]} 8. axb3 {[%emt 0:00:06]} g6 {[%emt 0:00:08] The position is equal.} 9. e4 {[%emt 0:00:39]} Bg7 {[%emt 0:00:04][%cal Of6e4] Strongly threatening ...Nxe4!} 10. d4 {[%emt 0:00:07]} O-O {[%emt 0:01:09]} 11. h3 {[%emt 0:04:49]} Nfd7 {[%emt 0:02:11]} 12. Bb2 {[%emt 0:03:05]} f5 {[%emt 0:02:50]} 13. exf5 {[%emt 0:01:22]} Rxf5 {[%emt 0:00:21]} 14. Nbd2 {[%emt 0:02:07][%cal Bb1d2,Bd2e4,Be4c5][%mdl 32]} Nf6 {[%emt 0:03:50][%cal Bd7f6,Bf6d5,Bd5b4][%mdl 32]} 15. Rfe1 {[%emt 0:02:43]} Nfd5 {[%emt 0:00:26]} 16. Ne4 {[%emt 0:00:20]} Nb4 {[%emt 1:14:42]} 17. Qe2 a5 {[%emt 0:00:00]} 18. Nc5 {[%emt 0:14:04]} N6d5 {[%emt 0:00:00]} 19. h4 {[%emt 0:00:11]} Qd6 {[%emt 0:00:00]} 20. Rac1 {[%emt 0:08:32]} b6 {[%emt 0:00:00]} 21. Ne4 {[%emt 0:00:05]} Qd8 {[%emt 0:00:00]} 22. Neg5 {[%emt 0:00:54]} h6 {[%emt 0:00:00]} 23. Ne6 {[%emt 0:00:20] White is slightly better.} Bxe6 {[%emt 0:00:00]} 24. Qxe6+ {[%emt 0:00:09]} Kh7 {[%emt 0:00:00]} 25. Qe2 {[%emt 0:06:12]} Qf8 {[%emt 0:00:00]} 26. Ne5 {[%emt 0:10:45]} Bxe5 {[%emt 0:00:00]} 27. dxe5 {[%emt 0:00:05][%cal Oc1c6]} e6 {[%emt 0:00:00] Weighted Error Value: White=0.02 (flawless) /Black=0.05 (flawless) .  Inaccurate:     	White=1     	Black=1      OK:         	White=9     	Black=9      Best:        	---       	Black=1} 1-0

[Event "3rd President Cup-A 2024"]
[Site "Tashkent"]
[Date "2024.11.29"]
[Round "9.4"]
[White "Vokhidov, Shamsiddin"]
[Black "Nigmatov, Ortik"]
[Result "1-0"]
[ECO "C78"]
[WhiteElo "2681"]
[BlackElo "2447"]
[Annotator "TA"]
[PlyCount "97"]
[EventDate "2024.11.22"]
[EventType "swiss"]
[EventCountry "UZB"]
[SourceTitle "playchess.com"]
[Source "ChessBase"]
[SourceQuality "1"]
[TimeControl "5400+30"]

{[%evp 46,97,32,40,52,70,179,0,0,-7,0,-166,83,97,114,102,268,273,275,270,275,214,256,176,168,161,178,182,185,156,179,183,337,326,337,287,339,322,469,458,546,521,625,744,2376,2111,2077,1925,29977,29978,29968,29972,29976,29969]} 1. e4 {[%emt 0:00:03]} e5 {[%emt 0:00:08]} 2. Nf3 {[%emt 0:00:04]} Nc6 {[%emt 0:00:05]} 3. Bb5 {[%emt 0:00:03]} a6 {[%emt 0:00:14]} 4. Ba4 {[%emt 0:00:04]} Nf6 {[%emt 0:00:14]} 5. O-O {[%emt 0:00:05]} Bc5 {[%emt 0:00:10]} 6. c3 {[%emt 0:00:06]} b5 {[%emt 0:00:04]} 7. Bc2 {[%emt 0:00:07]} d5 {[%emt 0:01:05] C78: Ruy Lopez: Archangelsk and Möller Defences.} 8. a4 {[%emt 0:00:03]} dxe4 {[%emt 0:01:29]} 9. axb5 {[%emt 0:00:03]} Bg4 {[%emt 0:00:33]} 10. bxc6 {[%emt 0:00:08]} exf3 {[%emt 0:00:08]} 11. gxf3 {[%emt 0:00:02]} Bh3 {[%emt 0:00:07]} 12. Re1 {[%emt 0:00:03]} O-O {[%emt 0:00:21]} 13. Ra5 {[%emt 0:00:02]} Qd6 {[%emt 0:01:31]} 14. b4 {[%emt 0:00:06]} Bxf2+ {[%emt 0:08:51]} 15. Kxf2 {[%emt 0:00:07]} e4 {[%emt 0:00:03]} 16. Kg1 {[%emt 0:00:08]} Rae8 {[%emt 0:01:50]} 17. Re3 {[%emt 0:00:41]} Nh5 {[%emt 0:01:26]} 18. Rg5 {[%emt 0:00:13]} Qh6 {[%emt 0:00:05]} 19. f4 {[%emt 0:01:48]} Nxf4 {[%emt 0:00:21]} 20. Rgg3 {[%emt 0:01:20]} f5 {[%emt 0:00:27]} 21. d4 {[%emt 0:00:05]} Bg4 {[%emt 0:01:04]} 22. Qf1 {[%emt 0:00:07]} Nh5 {[%emt 0:06:49]} 23. Re1 {[%emt 0:00:17]} Qd6 $146 {[%emt 0:20:21]} (23... Nxg3 $2 24. Qc4+ Qe6 25. Qxe6+ (25. Qxa6 $2 Nh5 $19) 25... Rxe6 26. Bb3 (26. hxg3 Rxc6 27. Bb3+ Kh8 $18) 26... Ne2+ 27. Rxe2 $18) ({Predecessor:} 23... Qxc6 24. Bf4 h6 25. Qf2 Nxg3 26. hxg3 Kh7 27. Be5 Re6 28. Nd2 Qxc3 29. Bb1 Qxb4 {0-1 Ivic,V (2509)-Aronian,L (2767) Lindores Abbey Blitz Tal Memorial 2021 (6.23)}) 24. Qf2 {[%emt 0:11:29]} Qxc6 {[%emt 0:06:06]} (24... Nxg3 25. Bb3+ Kh8 26. hxg3 Qxc6 27. Bf4 $16) 25. Bf4 {[%emt 0:03:39]} Rf6 {[%emt 0:08:46] [#]} (25... h6 $14) 26. Be5 $2 {[%emt 0:11:25]} (26. Rge3 $1 $18) 26... Nxg3 $11 {[%emt 0:07:41]} 27. Bb3+ {[%emt 0:04:07]} Kh8 {[%emt 0:00:38]} 28. Qxg3 $2 {[%emt 0:17:58] [#]} (28. hxg3 $11 Rh6 29. Bd1 Bxd1 30. Rxd1) 28... Rg6 $2 {[%emt 0:01:59]} ({Black should try} 28... f4 $1 $19 {[%cal Rf4g3]} 29. Bxf4 (29. Qxg4 $2 Rg6 $19) 29... Be6) 29. Bf7 $1 $16 {[%emt 0:04:25]} (29. Bxc7 $2 Bh3 30. Bf4 Rxg3+ $19) 29... Ree6 {[%emt 0:00:55] [#]} 30. Qh4 $1 {[%emt 0:05:35]} (30. Bxc7 $2 Bf3 31. Bxg6 Rxg6 $19) 30... Re8 $2 {[%emt 0:15:52]} (30... Bf3+ $16 31. Bg3 (31. Bxg6 Rxg6+ 32. Bg3 Qd7 $16) 31... Rxg3+ 32. hxg3 (32. Qxg3 Rf6 $11) 32... Rf6) 31. Bxg6 $18 {[%emt 0:05:02]} (31. Bxe8 $6 Qxe8 32. Nd2 (32. Bxc7 e3 $17) 32... h6 $16) 31... Qxg6 {[%emt 0:00:08]} 32. Nd2 {[%emt 0:00:55]} h6 {[%emt 0:04:38]} 33. Kf2 {[%emt 0:03:38]} (33. Bxc7 $6 e3 34. Nf1 e2 $18) 33... Kh7 {[%emt 0:05:08]} 34. h3 {[%emt 0:03:07]} (34. Bxc7 Qc6 35. Qg3 e3+ 36. Rxe3 Rxe3 37. Qxe3 Qxc7 $16) 34... Bh5 {[%emt 0:00:01]} 35. Qf4 {[%emt 0:04:17]} (35. Bxc7 Qf7 36. Qf4 g5 $11) 35... Qc6 {[%emt 0:01:44]} 36. c4 {[%emt 0:02:53]} (36. Qxf5+ Bg6 37. Qf4 Qxc3 38. Nxe4 Qxb4) 36... Qd7 {[%emt 0:00:12]} 37. h4 {[%emt 0:00:35]} (37. Bxc7 Qxd4+ 38. Qe3 Qd7 $11) 37... Bg4 {[%emt 0:01:02]} 38. Rg1 {[%emt 0:01:00]} (38. Bxc7 Qxd4+ 39. Qe3 Qf6 $11) 38... Qe7 $2 {[%emt 0:02:02]} (38... Rb8 39. Bxc7 Qxd4+ 40. Qe3 Qxe3+ 41. Kxe3 Rxb4) 39. Rxg4 $18 {[%emt 0:02:58]} (39. Bxc7 $2 e3+ (39... Qxb4 $2 40. Be5 $18) 40. Kg2 exd2 41. Qxd2 Qxc7 $19) 39... fxg4 {[%emt 0:00:05]} 40. Qxg4 {[%emt 0:00:08]} Qf7+ {[%emt 0:01:24]} 41. Ke3 {[%emt 0:02:30]} Rb8 {[%emt 0:01:05]} (41... Kg8 {was necessary.} 42. h5 (42. Kxe4 Re7 $18) (42. Qxe4 Re6 $18) (42. Nxe4 Re7 $18) 42... Re7) 42. Qxe4+ $18 {[%emt 0:00:44]} ({Don't play} 42. Kxe4 Kh8 43. h5 Rf8) 42... Kg8 {[%emt 0:01:51]} 43. Qd5 {[%emt 0:00:28]} Qxd5 {[%emt 0:02:25]} 44. cxd5 {[%emt 0:00:03]} Rxb4 {[%emt 0:00:27]} 45. Bxc7 {[%emt 0:00:04]} Kf7 {[%emt 0:00:08]} 46. Ne4 {[%emt 0:00:41]} g5 {[%emt 0:00:42]} 47. d6 {[%emt 0:00:40]} Rb3+ {[%emt 0:00:55]} 48. Kd2 {[%emt 0:00:08]} Rb4 {[%emt 0:00:38]} 49. Kc3 {[%emt 0:00:09]} 1-0

[Event "3rd President Cup-A 2024"]
[Site "Tashkent"]
[Date "2024.11.29"]
[Round "9.5"]
[White "Ayush Sharma"]
[Black "Yakubboev, Nodirbek"]
[Result "0-1"]
[ECO "B90"]
[WhiteElo "2464"]
[BlackElo "2668"]
[Annotator "TA"]
[PlyCount "107"]
[EventDate "2024.11.22"]
[EventType "swiss"]
[EventCountry "UZB"]
[SourceTitle "playchess.com"]
[Source "ChessBase"]
[SourceQuality "1"]
[TimeControl "5400+30"]

{[%evp 11,107,0,1,22,22,9,19,7,4,-8,23,0,0,-21,-8,-31,-52,-185,-150,-156,-127,-119,0,0,0,0,0,0,0,0,0,0,0,0,0,0,8,0,30,41,34,25,52,49,49,41,41,62,79,0,8,0,0,-31,0,-66,-56,-70,-69,-70,-10,-194,-173,-507,-503,-528,-636,-745,-347,-1360,-1269,-5405,-6256,-8736,-9495,-6103,-11749,-6514,-1989,-12733,-12733,-12504,-8736,-29955,-29967,-29968,-29968,-29949,-12827,-29974,-29975,-29965,-29965,-7462,-6341,-29975,-29974,-29938]} 1. e4 {[%emt 0:00:04]} c5 {[%emt 0:07:52]} 2. Nf3 {[%emt 0:00:03]} d6 {[%emt 0:00:06]} 3. d4 {[%emt 0:00:03]} cxd4 {[%emt 0:00:03]} 4. Nxd4 {[%emt 0:00:04]} Nf6 {[%emt 0:00:06]} 5. Nc3 {[%emt 0:00:02]} a6 {[%emt 0:00:05]} 6. Bd3 {[%emt 0:00:03]} g6 {[%emt 0:00:07]} 7. f3 {[%emt 0:00:40]} e5 {[%emt 0:00:22]} 8. Nde2 {[%emt 0:00:56]} Be6 {[%emt 0:00:14]} 9. Be3 {[%emt 0:03:50] The position is equal.} Nbd7 {[%emt 0:02:14]} 10. Ng3 {[%emt 0:07:19]} b5 {[%emt 0:04:55]} 11. Qd2 {[%emt 0:06:22]} h5 {[%emt 0:07:17]} 12. h4 {[%emt 0:02:11]} Be7 {[%emt 0:02:50]} 13. O-O-O {[%emt 0:06:36]} Qa5 {[%emt 0:13:39][%cal Ob5b4] Strongly threatening ...b4!} 14. a3 {[%emt 0:06:23]} (14. Kb1 $15) 14... b4 $19 {[%emt 0:03:34]} 15. Nd5 {[%emt 0:06:05]} Bxd5 {[%emt 0:00:50]} 16. exd5 {[%emt 0:00:05]} Nxd5 {[%emt 0:00:09]} (16... Rb8 $1 $17 {[%cal Oa5a4] Threatens to win with ...Qa4!} 17. Ne4 Qa4) 17. Bg5 $1 $11 {[%emt 0:00:33]} Bxg5 {[%emt 0:32:42]} 18. hxg5 {[%emt 0:02:53]} Nc3 {[%emt 0:02:02][%cal Oa8c8] Inhibits Be4. Hoping for ...Rc8!} 19. Ne4 {[%emt 0:27:37]} d5 {[%emt 0:04:07][%cal Bd6d5,Bd5d4][%mdl 32]} 20. Nxc3 {[%emt 0:00:44]} bxc3 {[%emt 0:00:05]} 21. Qxc3 {[%emt 0:00:04]} Qxc3 {[%emt 0:00:08]} 22. bxc3 {[%emt 0:00:03]} Ke7 {[%emt 0:03:48]} 23. c4 {[%emt 0:02:46]} d4 {[%emt 0:03:02]} 24. Rhe1 {[%emt 0:00:07]} Rac8 {[%emt 0:01:09]} 25. Bf1 {[%emt 0:03:39]} Kd6 {[%emt 0:05:13] [#]} 26. f4 $1 {[%emt 0:05:03]} Rhe8 {[%emt 0:00:54]} (26... Rc5 27. c3) 27. fxe5+ {[%emt 0:00:06]} Rxe5 {[%emt 0:00:52]} 28. Rxd4+ {[%emt 0:00:20]} Ke6 {[%emt 0:00:06]} 29. Rxe5+ {[%emt 0:09:04]} Nxe5 $14 {[%emt 0:00:02][%mdl 4096] Endgame. KRB-KRN} 30. Rf4 {[%emt 0:05:47]} (30. Kd2 $16) 30... a5 {[%emt 0:00:31]} 31. Bd3 {[%emt 0:00:34]} Rc5 {[%emt 0:00:40]} 32. Kb2 {[%emt 0:00:58]} Ng4 {[%emt 0:03:22]} 33. Kc3 {[%emt 0:03:40]} ({Better is} 33. Re4+ $11 Kd6 34. Rd4+ Ke7 35. Rd5 Rxd5 36. cxd5) 33... Rxg5 $15 {[%emt 0:00:05]} 34. Kd4 {[%emt 0:00:07] Prevents Ne3.} Nf6 $1 {[%emt 0:02:03]} 35. c5 {[%emt 0:00:09]} Rxg2 {[%emt 0:00:52] And now ...Rg4 would win.} 36. Bc4+ $2 {[%emt 0:00:32] White is on the road to losing.} (36. Ba6 $1 $11 {and White has nothing to worry.}) 36... Ke7 $19 {[%emt 0:00:04][%cal Og2g4]} 37. c6 $2 {[%emt 0:00:18] [#]} (37. Rf3 {is more resistant.} Rg4+ (37... Rxc2 38. c6 $11) 38. Kd3) 37... Rg4 $1 {[%emt 0:00:29]} 38. Rxg4 {[%emt 0:00:08]} hxg4 {[%emt 0:00:46] KB-KN} 39. c7 {[%emt 0:02:34]} Kd7 {[%emt 0:00:01] aiming for ...g3.} 40. Ke3 $2 {[%emt 0:01:12] [#]} (40. c8=Q+ Kxc8 41. Bxf7) 40... g3 $1 {[%emt 0:00:15]} (40... Kxc7 41. Bxf7 g5 42. Kf2 $17) 41. Kf3 {[%emt 0:00:37] [#] Inhibits Ng4.} Ne4 $1 {[%emt 0:00:10][%mdl 512]} 42. Bd5 {[%emt 0:00:32]} (42. Kg2 f5) 42... f5 {[%emt 0:00:50]} 43. Kg2 {[%emt 0:00:29]} Kxc7 {[%emt 0:00:07]} 44. Bf7 {[%emt 0:00:02]} g5 {[%emt 0:00:19]} (44... f4 $142 45. Bxg6 Nd2) 45. Bg6 {[%emt 0:00:03]} Nd6 {[%emt 0:00:09]} 46. Kxg3 {[%emt 0:00:03]} Kc6 {[%emt 0:00:05] ( -> ...Kd5)} 47. Kf3 {[%emt 0:00:49]} Kd5 {[%emt 0:00:07]} 48. Ke3 {[%emt 0:00:23]} Nc4+ {[%emt 0:00:23]} 49. Ke2 {[%emt 0:00:22]} Ke6 {[%emt 0:01:10]} 50. a4 {[%emt 0:00:18]} Nd6 {[%emt 0:00:18]} 51. Ke3 {[%emt 0:01:04]} Ke5 {[%emt 0:00:39]} 52. Bh5 {[%emt 0:00:20]} g4 {[%emt 0:00:22]} 53. c3 {[%emt 0:00:13]} f4+ {[%emt 0:00:31]} 54. Ke2 {[%emt 0:00:23] Weighted Error Value: White=0.89/Black=0.18 (very precise) .  Loses game:     	White=1     	---        Mistake:       	White=4     	Black=1      Inaccurate:     	White=2     	Black=4      OK:         	White=5     	Black=10     Best:        	White=2     	Black=4      Strong:       	White=1     	Black=2} 0-1